fUSD/lending_fUSD_20240612
["ID","MTS","AMOUNT","RATE_DAILY","PERIOD"]
[329219095,1718185884227,-500.0,0.00020273,2]
[329219096,1718185884238,-998.7,0.00020273,2]
[329219097,1718185884249,-500.0,0.00020273,2]
[329219098,1718185884260,-500.0,0.00020273,2]
[329219099,1718185884271,-975.94,0.00020273,2]
[329219100,1718185884282,-500.0,0.00020273,2]
[329219101,1718185884293,-798.24,0.00020273,2]
[329219102,1718185884304,-611.52,0.00020273,2]
[329219103,1718185884315,-833.49,0.00020273,2]
[329219104,1718185884327,-875.83,0.00020273,2]
[329219105,1718185884339,-500.0,0.00020273,2]
[329219106,1718185884350,-500.0,0.00020273,2]
[329219107,1718185884360,-1061.9,0.00020273,2]
[329219108,1718185884372,-638.1,0.00020273,2]
[329219109,1718185884383,-609.2,0.00020273,2]
[329219110,1718185884393,-500.0,0.00020273,2]
[329219111,1718185884404,-500.0,0.00020273,2]
[329219112,1718185884416,-617.77,0.00020273,2]
[329219113,1718185884426,-566.19,0.00020273,2]
[329219114,1718185884436,-500.0,0.00020273,2]
[329219115,1718185884447,-500.0,0.00020273,2]
[329219116,1718185884458,-2086.81,0.00020273,2]
[329219117,1718185884469,-587.52,0.00020273,2]
[329219118,1718185884480,-2541.52,0.00020273,2]
[329219119,1718185884491,-840.54,0.00020273,2]
[329219120,1718185884502,-500.0,0.00020273,2]
[329219121,1718185884513,-500.0,0.00020273,2]
[329219122,1718185884525,-861.93,0.00020273,2]
[329219123,1718185884537,-653.36,0.00020273,2]
[329219124,1718185884548,-1513.9,0.00020273,2]
[329219125,1718185884560,-1430.79,0.00020273,2]
[329219126,1718185884571,-500.0,0.00020273,2]
[329219127,1718185884582,-1116.87,0.00020273,2]
[329219128,1718185884594,-500.0,0.00020273,2]
[329219129,1718185884606,-1680.63,0.00020273,2]
[329219130,1718185884618,-2401.2,0.00020273,2]
[329219131,1718185884629,-500.0,0.00020273,2]
[329219132,1718185884640,-500.0,0.00020273,2]
[329219133,1718185884652,-562.19,0.00020273,2]
[329219134,1718185884669,-500.0,0.00020273,2]
[329219135,1718185884681,-1223.41,0.00020273,2]
[329219136,1718185884692,-982.45,0.00020273,2]
[329219137,1718185884704,-1057.64,0.00020273,2]
[329219138,1718185884715,-500.0,0.00020273,2]
[329219139,1718185884728,-807.87,0.00020273,2]
[329219140,1718185884741,-416.8030443,0.00020273,2]
[329219141,1718185884752,-1266.87,0.00020273,2]
[329219142,1718185884763,-714.41,0.00020273,2]
[329219143,1718185884775,-500.0,0.00020273,2]
[329219144,1718185884786,-1245.17,0.00020273,2]
[329219145,1718185884797,-624.57,0.00020273,2]
[329219146,1718185884808,-500.0,0.00020273,2]
[329219147,1718185884820,-500.0,0.00020273,2]
[329219148,1718185884831,-1411.92,0.00020273,2]
[329219149,1718185884843,-1034.01,0.00020273,2]
[329219150,1718185884853,-507.19,0.00020273,2]
[329219151,1718185884864,-769.32,0.00020273,2]
[329219152,1718185884876,-632.86,0.00020273,2]
[329219153,1718185884887,-1980.14,0.00020273,2]
[329219154,1718185884899,-855.8,0.00020273,2]
[329219155,1718185884910,-2845.79,0.00020273,2]
[329219156,1718185884923,-658.23,0.00020273,2]
[329219157,1718185884935,-500.0,0.00020273,2]
[329219158,1718185884946,-500.0,0.00020273,2]
[329219159,1718185884957,-500.0,0.00020273,2]
[329219160,1718185884969,-856.59,0.00020273,2]
[329219161,1718185884979,-736.59,0.00020273,2]
[329219162,1718185884990,-771.76,0.00020273,2]
[329219163,1718185885005,-906.07,0.00020273,2]
[329219164,1718185885016,-1448.82,0.00020273,2]
[329219165,1718185885027,-654.87,0.00020273,2]
[329219166,1718185885039,-500.0,0.00020273,2]
[329219167,1718185885050,-1124.45,0.00020273,2]
[329219168,1718185885061,-543.6,0.00020273,2]
[329219169,1718185885074,-500.0,0.00020273,2]
[329219170,1718185885086,-3297.81,0.00020273,2]
[329219171,1718185885113,-513.64,0.00020273,2]
[329219172,1718185885124,-2891.44,0.00020273,2]
[329219173,1718185885135,-500.0,0.00020273,2]
[329219174,1718185885145,-769.71,0.00020273,2]
[329219175,1718185885156,-733.82,0.00020273,2]
[329219176,1718185885168,-2443.76,0.00020273,2]
[329219177,1718185885180,-500.0,0.00020273,2]
[329219178,1718185885190,-2858.77,0.00020273,2]
[329219179,1718185885201,-2001.79,0.00020273,2]
[329219180,1718185885212,-592.96588686,0.00020273,2]
[329219181,1718185885224,-863.57,0.00020273,2]
[329219182,1718185885235,-5348.23,0.00020273,2]
[329219183,1718185885246,-500.0,0.00020273,2]
[329219184,1718185885257,-500.0,0.00020273,2]
[329219185,1718185885268,-885.96,0.00020273,2]
[329219186,1718185885279,-500.0,0.00020273,2]
[329219187,1718185885289,-597.64,0.00020273,2]
[329219188,1718185885300,-500.0,0.00020273,2]
[329219189,1718185885311,-1934.79,0.00020273,2]
[329219190,1718185885321,-500.0,0.00020273,2]
[329219191,1718185885332,-1159.83,0.00020273,2]
[329219192,1718185885343,-500.0,0.00020273,2]
[329219193,1718185885355,-500.0,0.00020273,2]
[329219194,1718185885365,-994.91,0.00020273,2]
[329219195,1718185885376,-670.09,0.00020273,2]
[329219196,1718185885386,-500.0,0.0002041,2]
[329219197,1718185885457,-500.0,0.0002041,2]
[329219198,1718185885469,-500.0,0.0002041,2]
[329219199,1718185885479,-529.04,0.0002041,2]
[329219200,1718185885490,-500.0,0.0002041,2]
[329219201,1718185885500,-802.03,0.0002041,2]
[329219202,1718185885510,-621.13607206,0.0002041,2]
[329219203,1718185885521,-500.0,0.0002041,2]
[329219204,1718185885532,-500.0,0.0002041,2]
[329219205,1718185885542,-500.0,0.0002041,2]
[329219206,1718185885553,-425.9523823,0.0002041,2]
[329219207,1718185885564,-500.0,0.0002041,2]
[329219208,1718185885574,-865.21,0.0002041,2]
[329219209,1718185885585,-500.0,0.0002041,2]
[329219210,1718185885596,-500.0,0.0002041,2]
[329219211,1718185885606,-616.47,0.0002041,2]
[329219212,1718185885617,-500.0,0.0002041,2]
[329219213,1718185885627,-500.0,0.0002041,2]
[329219214,1718185885638,-500.0,0.0002041,2]
[329219215,1718185885648,-396.67603535,0.0002041,2]
[329219216,1718185885659,-376.69086862,0.0002041,2]
[329219217,1718185885674,-500.0,0.0002041,2]
[329219218,1718185885685,-827.08,0.0002041,2]
[329219219,1718185885696,-641.91,0.0002041,2]
[329219220,1718185885708,-500.0,0.0002041,2]
[329219221,1718185885720,-500.0,0.0002041,2]
[329219222,1718185885730,-500.0,0.0002041,2]
[329219223,1718185885741,-500.0,0.0002041,2]
[329219224,1718185885752,-500.0,0.0002041,2]
[329219225,1718185885763,-150.61907446,0.0002041,2]
[329219226,1718185885774,-831.92,0.0002041,2]
[329219227,1718185885786,-500.0,0.0002041,2]
[329219228,1718185885797,-500.0,0.0002041,2]
[329219229,1718185885808,-500.0,0.0002041,2]
[329219230,1718185885819,-500.0,0.0002041,2]
[329219231,1718185885831,-596.38,0.0002041,2]
[329219232,1718185885843,-500.0,0.0002041,2]
[329219233,1718185885853,-500.0,0.0002041,2]
[329219234,1718185885864,-500.0,0.0002041,2]
[329219235,1718185885876,-500.0,0.0002041,2]
[329219236,1718185885889,-150.0,0.0002041,2]
[329219237,1718185885901,-500.0,0.0002041,2]
[329219238,1718185885912,-636.69,0.0002041,2]
[329219239,1718185885926,-500.0,0.0002041,2]
[329219240,1718185885938,-647.51677689,0.0002041,2]
[329219241,1718185885950,-550.81,0.0002041,2]
[329219242,1718185885961,-544.83,0.0002041,2]
[329219243,1718185885972,-501.3062859,0.0002041,2]
[329219244,1718185885985,-500.0,0.0002041,2]
[329219245,1718185885997,-500.0,0.0002041,2]
[329219246,1718185886008,-500.0,0.0002041,2]
[329219247,1718185886019,-642.59,0.0002041,2]
[329219248,1718185886031,-500.0,0.0002041,2]
[329219249,1718185886042,-528.18,0.0002041,2]
[329219250,1718185886053,-500.0,0.0002041,2]
[329219251,1718185886064,-500.0,0.0002041,2]
[329219252,1718185886077,-500.0,0.0002041,2]
[329219253,1718185886090,-500.0,0.0002041,2]
[329219254,1718185886116,-500.0,0.0002041,2]
[329219255,1718185886128,-500.0,0.0002041,2]
[329219256,1718185886139,-500.0,0.0002041,2]
[329219257,1718185886150,-587.49263942,0.0002041,2]
[329219258,1718185886162,-500.0,0.0002041,2]
[329219259,1718185886175,-500.0,0.0002041,2]
[329219260,1718185886186,-500.0,0.0002041,2]
[329219261,1718185886197,-293.05366547,0.0002041,2]
[329219262,1718185886208,-500.0,0.0002041,2]
[329219263,1718185886219,-500.0,0.0002041,2]
[329219264,1718185886231,-500.0,0.0002041,2]
[329219265,1718185886242,-500.0,0.0002041,2]
[329219266,1718185886254,-549.88,0.0002041,2]
[329219267,1718185886265,-500.0,0.0002041,2]
[329219268,1718185886275,-500.0,0.0002041,2]
[329219269,1718185886286,-500.0,0.0002041,2]
[329219270,1718185886298,-500.0,0.0002041,2]
[329219271,1718185886309,-222.55735489,0.0002041,2]
[329219272,1718185886320,-500.0,0.0002041,2]
[329219273,1718185886330,-500.0,0.0002041,2]
[329219274,1718185886342,-500.0,0.0002041,2]
[329219275,1718185886353,-500.0,0.0002041,2]
[329219276,1718185886365,-616.7,0.0002041,2]
[329219277,1718185886376,-500.0,0.0002041,2]
[329219278,1718185886386,-769.59,0.0002041,2]
[329219279,1718185886397,-500.0,0.0002041,2]
[329219280,1718185886407,-500.0,0.0002041,2]
[329219281,1718185886419,-563.56,0.0002041,2]
[329219282,1718185886431,-301.63795261,0.0002041,2]
[329219283,1718185886441,-657.51,0.0002041,2]
[329219284,1718185886452,-1663.16,0.0002041,2]
[329219285,1718185886463,-618.217124,0.0002041,2]
[329219286,1718185886474,-536.03710884,0.0002041,2]
[329219287,1718185886484,-4313.61,0.0002041,2]
[329219288,1718185886495,-844.37,0.0002041,2]
[329219289,1718185886507,-500.0,0.0002041,2]
[329219290,1718185886518,-1497.28,0.0002041,2]
[329219291,1718185886529,-532.58,0.0002041,2]
[329219292,1718185886540,-550.43,0.0002041,2]
[329219293,1718185886551,-500.0,0.0002041,2]
[329219294,1718185886561,-793.78,0.0002041,2]
[329219295,1718185886573,-500.0,0.0002041,2]
[329219296,1718185886584,-500.0,0.0002041,2]
[329219297,1718185886597,-552.52,0.0002041,2]
[329219298,1718185886608,-4109.6,0.0002041,2]
[329219299,1718185886619,-500.0,0.0002041,2]
[329219300,1718185886631,-1055.47,0.0002041,2]
[329219301,1718185886642,-897.13,0.0002041,2]
[329219302,1718185886653,-543.28,0.0002041,2]
[329219303,1718185886665,-1296.61,0.0002041,2]
[329219304,1718185886676,-500.0,0.0002041,2]
[329219305,1718185886687,-768.11,0.0002041,2]
[329219306,1718185886697,-809.93,0.0002041,2]
[329219307,1718185886709,-6405.02,0.0002041,2]
[329219308,1718185886721,-2036.48,0.0002041,2]
[329219309,1718185886733,-500.0,0.0002041,2]
[329219310,1718185886745,-2920.36,0.0002041,2]
[329219311,1718185886756,-500.0,0.0002041,2]
[329219312,1718185886767,-2762.9,0.0002041,2]
[329219313,1718185886778,-500.0,0.0002041,2]
[329219314,1718185886790,-708.79,0.0002041,2]
[329219315,1718185886801,-500.0,0.0002041,2]
[329219316,1718185886811,-1021.06,0.0002041,2]
[329219317,1718185886822,-500.0,0.0002041,2]
[329219318,1718185886833,-500.0,0.0002041,2]
[329219319,1718185886844,-500.0,0.0002041,2]
[329219320,1718185886855,-500.0,0.0002041,2]
[329219321,1718185886866,-500.0,0.0002041,2]
[329219322,1718185886877,-1191.19,0.0002041,2]
[329219323,1718185886888,-500.0,0.0002041,2]
[329219324,1718185886898,-500.0,0.0002041,2]
[329219325,1718185886910,-500.0,0.0002041,2]
[329219326,1718185886925,-2756.75,0.0002041,2]
[329219327,1718185886935,-761.22,0.0002041,2]
[329219328,1718185886947,-743.07,0.0002041,2]
[329219329,1718185886958,-683.7,0.0002041,2]
[329219330,1718185886970,-515.05,0.0002041,2]
[329219331,1718185886981,-1876.75,0.0002041,2]
[329219332,1718185886992,-1604.18,0.0002041,2]
[329219333,1718185887006,-790.24,0.0002041,2]
[329219334,1718185887017,-319.71315944,0.0002041,2]
[329219335,1718185887029,-998.7,0.0002041,2]
[329219336,1718185887039,-500.0,0.0002041,2]
[329219337,1718185887049,-500.0,0.0002041,2]
[329219338,1718185887059,-975.94,0.0002041,2]
[329219339,1718185887071,-500.0,0.0002041,2]
[329219340,1718185887084,-798.24,0.0002041,2]
[329219341,1718185887106,-611.52,0.0002041,2]
[329219342,1718185887119,-833.49,0.0002041,2]
[329219343,1718185887132,-875.83,0.0002041,2]
[329219344,1718185887144,-500.0,0.0002041,2]
[329219345,1718185887156,-500.0,0.0002041,2]
[329219346,1718185887170,-1061.9,0.0002041,2]
[329219347,1718185887181,-638.1,0.0002041,2]
[329219348,1718185887192,-609.2,0.0002041,2]
[329219349,1718185887203,-444.46526829,0.0002041,2]
[329219350,1718185887215,-500.0,0.0002041,2]
[329219351,1718185887225,-617.77,0.0002041,2]
[329219352,1718185887237,-566.19,0.0002041,2]
[329219353,1718185887248,-500.0,0.0002041,2]
[329219354,1718185887260,-500.0,0.0002041,2]
[329219355,1718185887271,-2086.81,0.0002041,2]
[329219356,1718185887282,-587.52,0.0002041,2]
[329219357,1718185887294,-2541.52,0.0002041,2]
[329219358,1718185887305,-840.54,0.0002041,2]
[329219359,1718185887316,-500.0,0.0002041,2]
[329219360,1718185887326,-861.93,0.0002041,2]
[329219361,1718185887338,-653.36,0.0002041,2]
[329219362,1718185887349,-1513.9,0.0002041,2]
[329219363,1718185887360,-1430.79,0.0002041,2]
[329219364,1718185887371,-500.0,0.0002041,2]
[329219365,1718185887382,-1116.87,0.0002041,2]
[329219366,1718185887393,-500.0,0.0002041,2]
[329219367,1718185887404,-1680.63,0.0002041,2]
[329219368,1718185887416,-2401.2,0.0002041,2]
[329219369,1718185887427,-500.0,0.0002041,2]
[329219370,1718185887439,-500.0,0.0002041,2]
[329219371,1718185887450,-562.19,0.0002041,2]
[329219372,1718185887462,-500.0,0.0002041,2]
[329219373,1718185887472,-1223.41,0.0002041,2]
[329219374,1718185887483,-1057.64,0.0002041,2]
[329219375,1718185887493,-534.31525989,0.0002041,2]
[329219376,1718185887503,-807.87,0.0002041,2]
[329219377,1718185887513,-982.45,0.0002041,2]
[329219378,1718185887523,-1266.87,0.0002041,2]
[329219379,1718185887534,-714.41,0.0002041,2]
[329219380,1718185887545,-500.0,0.0002041,2]
[329219381,1718185887555,-1245.17,0.0002041,2]
[329219382,1718185887566,-624.57,0.0002041,2]
[329219383,1718185887579,-500.0,0.0002041,2]
[329219384,1718185887590,-500.0,0.0002041,2]
[329219385,1718185887601,-1411.92,0.0002041,2]
[329219386,1718185887612,-1034.01,0.0002041,2]
[329219387,1718185887624,-507.19,0.0002041,2]
[329219388,1718185887645,-769.32,0.0002041,2]
[329219389,1718185887656,-632.86,0.0002041,2]
[329219390,1718185887671,-1980.14,0.0002041,2]
[329219391,1718185887682,-855.8,0.0002041,2]
[329219392,1718185887693,-2845.79,0.0002041,2]
[329219393,1718185887704,-658.23,0.0002041,2]
[329219394,1718185887716,-500.0,0.0002041,2]
[329219395,1718185887728,-500.0,0.0002041,2]
[329219396,1718185887740,-500.0,0.0002041,2]
[329219397,1718185887751,-856.59,0.0002041,2]
[329219398,1718185887763,-736.59,0.0002041,2]
[329219399,1718185887775,-771.76,0.0002041,2]
[329219400,1718185887786,-906.07,0.0002041,2]
[329219401,1718185887798,-1448.82,0.0002041,2]
[329219402,1718185887810,-654.87,0.0002041,2]
[329219403,1718185887820,-249.83622353,0.0002041,2]
[329219404,1718185887831,-1124.45,0.0002041,2]
[329219405,1718185887843,-543.6,0.0002041,2]
[329219406,1718185887854,-500.0,0.0002041,2]
[329219407,1718185887866,-3297.81,0.0002041,2]
[329219408,1718185887878,-513.64,0.0002041,2]
[329219409,1718185887889,-2891.44,0.0002041,2]
[329219410,1718185887900,-461.65825798,0.0002041,2]
[329219411,1718185887911,-769.71,0.0002041,2]
[329219412,1718185887925,-733.82,0.0002041,2]
[329219413,1718185887936,-2443.76,0.0002041,2]
[329219414,1718185887947,-500.0,0.0002041,2]
[329219415,1718185887959,-2858.77,0.0002041,2]
[329219416,1718185887971,-2001.79,0.0002041,2]
[329219417,1718185887983,-863.57,0.0002041,2]
[329219418,1718185888001,-5348.23,0.0002041,2]
[329219419,1718185888012,-500.0,0.0002041,2]
[329219420,1718185888024,-500.0,0.0002041,2]
[329219421,1718185888036,-885.96,0.0002041,2]
[329219422,1718185888047,-597.64,0.0002041,2]
[329219423,1718185888058,-500.0,0.0002041,2]
[329219424,1718185888069,-500.0,0.0002041,2]
[329219425,1718185888081,-1934.79,0.0002041,2]
[329219426,1718185888096,-500.0,0.0002041,2]
[329219427,1718185888122,-1159.83,0.0002041,2]
[329219428,1718185888133,-500.0,0.0002041,2]
[329219429,1718185888144,-500.0,0.0002041,2]
[329219430,1718185888156,-994.91,0.0002041,2]
[329219431,1718185888169,-670.09,0.0002041,2]
[329219432,1718185888180,-305.37,0.00020414,2]
[329219433,1718185888191,-2100.0,0.00020414,2]
[329219434,1718185888201,-200.041961,0.00020501,2]
[329219435,1718185888211,-11043.385804,0.00020501,2]
[329219436,1718185888223,-168.378438,0.00020501,2]
[329219437,1718185888234,-186.387384,0.00020501,2]
[329219438,1718185888244,-170.750035,0.00020501,2]
[329219439,1718185888255,-158.634048,0.00020501,2]
[329219440,1718185888266,-5860.170499,0.00020501,2]
[329219441,1718185888276,-2025.728777,0.00020501,2]
[329219442,1718185888287,-178.395757,0.00020501,2]
[329219443,1718185888298,-190.181147,0.00020501,2]
[329219444,1718185888309,-1546.349717,0.00020501,2]
[329219445,1718185888319,-1476.502472,0.00020501,2]
[329219446,1718185888330,-3421.765188,0.00020501,2]
[329219447,1718185888341,-523.803832,0.00020501,2]
[329219448,1718185888351,-171.420792,0.00020501,2]
[329219449,1718185888362,-500.0,0.00020547,2]
[329219450,1718185888373,-500.0,0.00020547,2]
[329219451,1718185888383,-500.0,0.00020547,2]
[329219452,1718185888394,-529.04,0.00020547,2]
[329219453,1718185888405,-500.0,0.00020547,2]
[329219454,1718185888417,-802.03,0.00020547,2]
[329219455,1718185888428,-500.0,0.00020547,2]
[329219456,1718185888438,-215.2312783,0.00020547,2]
[329219457,1718185888448,-500.0,0.00020547,2]
[329219458,1718185888458,-500.0,0.00020547,2]
[329219459,1718185888468,-865.21,0.00020547,2]
[329219460,1718185888478,-500.0,0.00020547,2]
[329219461,1718185888489,-500.0,0.00020547,2]
[329219462,1718185888499,-616.47,0.00020547,2]
[329219463,1718185888510,-392.50090934,0.00020547,2]
[329219464,1718185888521,-500.0,0.00020547,2]
[329219465,1718185888531,-500.0,0.00020547,2]
[329219466,1718185888542,-500.0,0.00020547,2]
[329219467,1718185888553,-827.08,0.00020547,2]
[329219468,1718185888564,-641.91,0.00020547,2]
[329219469,1718185888575,-500.0,0.00020547,2]
[329219470,1718185888586,-500.0,0.00020547,2]
[329219471,1718185888597,-500.0,0.00020547,2]
[329219472,1718185888608,-500.0,0.00020547,2]
[329219473,1718185888619,-429.78047985,0.00020547,2]
[329219474,1718185888629,-831.92,0.00020547,2]
[329219475,1718185888639,-500.0,0.00020547,2]
[329219476,1718185888650,-500.0,0.00020547,2]
[329219477,1718185888660,-500.0,0.00020547,2]
[329219478,1718185888672,-500.0,0.00020547,2]
[329219479,1718185888683,-596.38,0.00020547,2]
[329219480,1718185888695,-500.0,0.00020547,2]
[329219481,1718185888706,-500.0,0.00020547,2]
[329219482,1718185888717,-500.0,0.00020547,2]
[329219483,1718185888728,-500.0,0.00020547,2]
[329219484,1718185888742,-150.0,0.00020547,2]
[329219485,1718185888752,-528.97269575,0.00020547,2]
[329219486,1718185888763,-636.69,0.00020547,2]
[329219487,1718185888774,-500.0,0.00020547,2]
[329219488,1718185888785,-550.81,0.00020547,2]
[329219489,1718185888795,-544.83,0.00020547,2]
[329219490,1718185888806,-500.0,0.00020547,2]
[329219491,1718185888816,-500.0,0.00020547,2]
[329219492,1718185888828,-500.0,0.00020547,2]
[329219493,1718185888839,-642.59,0.00020547,2]
[329219494,1718185888850,-500.0,0.00020547,2]
[329219495,1718185888860,-528.18,0.00020547,2]
[329219496,1718185888871,-500.0,0.00020547,2]
[329219497,1718185888881,-500.0,0.00020547,2]
[329219498,1718185888892,-500.0,0.00020547,2]
[329219499,1718185888903,-500.0,0.00020547,2]
[329219500,1718185888913,-232.267889,0.00020547,2]
[329219501,1718185888924,-500.0,0.00020547,2]
[329219502,1718185888936,-155.38215532,0.00020547,2]
[329219503,1718185888947,-500.0,0.00020547,2]
[329219504,1718185888957,-500.0,0.00020547,2]
[329219505,1718185888969,-500.0,0.00020547,2]
[329219506,1718185888980,-410.57122071,0.00020547,2]
[329219507,1718185888995,-500.0,0.00020547,2]
[329219508,1718185889006,-500.0,0.00020547,2]
[329219509,1718185889017,-356.58044167,0.00020547,2]
[329219510,1718185889030,-549.88,0.00020547,2]
[329219511,1718185889041,-500.0,0.00020547,2]
[329219512,1718185889052,-500.0,0.00020547,2]
[329219513,1718185889063,-500.0,0.00020547,2]
[329219514,1718185889074,-500.0,0.00020547,2]
[329219515,1718185889085,-500.0,0.00020547,2]
[329219516,1718185889102,-500.0,0.00020547,2]
[329219517,1718185889119,-500.0,0.00020547,2]
[329219518,1718185889131,-586.18787142,0.00020547,2]
[329219519,1718185889142,-616.7,0.00020547,2]
[329219520,1718185889153,-500.0,0.00020547,2]
[329219521,1718185889164,-769.59,0.00020547,2]
[329219522,1718185889175,-500.0,0.00020547,2]
[329219523,1718185889186,-312.75569955,0.00020547,2]
[329219524,1718185889197,-563.56,0.00020547,2]
[329219525,1718185889207,-657.51,0.00020547,2]
[329219526,1718185889219,-1663.16,0.00020547,2]
[329219527,1718185889230,-4313.61,0.00020547,2]
[329219528,1718185889241,-844.37,0.00020547,2]
[329219529,1718185889252,-500.0,0.00020547,2]
[329219530,1718185889263,-1497.28,0.00020547,2]
[329219531,1718185889274,-532.58,0.00020547,2]
[329219532,1718185889284,-550.43,0.00020547,2]
[329219533,1718185889295,-500.0,0.00020547,2]
[329219534,1718185889305,-793.78,0.00020547,2]
[329219535,1718185889316,-500.0,0.00020547,2]
[329219536,1718185889327,-500.0,0.00020547,2]
[329219537,1718185889338,-552.52,0.00020547,2]
[329219538,1718185889349,-4109.6,0.00020547,2]
[329219539,1718185889360,-500.0,0.00020547,2]
[329219540,1718185889371,-1055.47,0.00020547,2]
[329219541,1718185889382,-897.13,0.00020547,2]
[329219542,1718185889393,-543.28,0.00020547,2]
[329219543,1718185889404,-1296.61,0.00020547,2]
[329219544,1718185889417,-500.0,0.00020547,2]
[329219545,1718185889428,-809.93,0.00020547,2]
[329219546,1718185889440,-768.11,0.00020547,2]
[329219547,1718185889451,-6405.02,0.00020547,2]
[329219548,1718185889464,-2036.48,0.00020547,2]
[329219549,1718185889475,-500.0,0.00020547,2]
[329219550,1718185889487,-2920.36,0.00020547,2]
[329219551,1718185889498,-500.0,0.00020547,2]
[329219552,1718185889508,-2762.9,0.00020547,2]
[329219553,1718185889519,-354.23476104,0.00020547,2]
[329219554,1718185889581,-354.55523896,0.00020547,2]
[329219555,1718185889593,-500.0,0.00020547,2]
[329219556,1718185889604,-500.0,0.00020547,2]
[329219557,1718185889615,-1021.06,0.00020547,2]
[329219558,1718185889626,-500.0,0.00020547,2]
[329219559,1718185889637,-500.0,0.00020547,2]
[329219560,1718185889648,-500.0,0.00020547,2]
[329219561,1718185889659,-500.0,0.00020547,2]
[329219562,1718185889671,-500.0,0.00020547,2]
[329219563,1718185889681,-1191.19,0.00020547,2]
[329219564,1718185889691,-500.0,0.00020547,2]
[329219565,1718185889702,-419.45220318,0.00020547,2]
[329219566,1718185889715,-500.0,0.00020547,2]
[329219567,1718185889726,-2756.75,0.00020547,2]
[329219568,1718185889738,-761.22,0.00020547,2]
[329219569,1718185889749,-743.07,0.00020547,2]
[329219570,1718185889760,-683.7,0.00020547,2]
[329219571,1718185889772,-515.05,0.00020547,2]
[329219572,1718185889783,-1876.75,0.00020547,2]
[329219573,1718185889793,-1604.18,0.00020547,2]
[329219574,1718185889804,-790.24,0.00020547,2]
[329219575,1718185889816,-998.7,0.00020547,2]
[329219576,1718185889827,-500.0,0.00020547,2]
[329219577,1718185889838,-500.0,0.00020547,2]
[329219578,1718185889849,-975.94,0.00020547,2]
[329219579,1718185889860,-500.0,0.00020547,2]
[329219580,1718185889872,-798.24,0.00020547,2]
[329219581,1718185889883,-319.35348877,0.00020547,2]
[329219582,1718185889921,-500.0,0.0002,2]
[329219583,1718185889933,-292.16651123,0.00020547,2]
[329219584,1718185889944,-833.49,0.00020547,2]
[329219585,1718185889956,-452.73966166,0.00020547,2]
[329219586,1718185889997,-298.72,0.00020136,2]
[329219587,1718185890011,-201.28,0.00020136,2]
[329219588,1718185890023,-423.09033834,0.00020547,2]
[329219589,1718185890035,-605.07,0.00020547,2]
[329219590,1718185890047,-500.0,0.00020547,2]
[329219591,1718185890058,-500.0,0.00020547,2]
[329219592,1718185890251,-1061.9,0.00020547,2]
[329219593,1718185890262,-638.1,0.00020547,2]
[329219594,1718185890273,-609.2,0.00020547,2]